fUSD/lending_fUSD_20240718
["ID","MTS","AMOUNT","RATE_DAILY","PERIOD"]
[332561861,1721294028580,-214.0,0.0003946,30]
[332561862,1721294028615,-216.87865522,0.0003985,30]
[332561863,1721294028653,-2200.0,0.00039999,10]
[332561864,1721294028688,-2200.0,0.00039999,10]
[332561865,1721294028723,-249.999999,0.00039999,30]
[332561866,1721294028760,-500.0,0.00039999,31]
[332561867,1721294028793,-183.66410197,0.00039999,31]
[332561868,1721294028826,-386.04280607,0.00039999,31]
[332561869,1721294028860,-469.4548333,0.00039999,31]
[332561870,1721294028896,-500.0,0.00039999,31]
[332561871,1721294028933,-500.0,0.00039999,31]
[332561872,1721294028972,-500.0,0.00039999,31]
[332561873,1721294029006,-500.0,0.00039999,31]
[332561874,1721294029041,-262.0612777,0.00039999,31]
[332561875,1721294029076,-321.82703791,0.00039999,31]
[332561876,1721294029110,-500.0,0.00039999,31]
[332561877,1721294029144,-233.98154724,0.00039999,31]
[332561878,1721294029179,-285.28311022,0.00039999,31]
[332561879,1721294029214,-500.0,0.00039999,31]
[332561880,1721294029248,-500.0,0.00039999,31]
[332561881,1721294029283,-500.0,0.00039999,31]
[332561882,1721294029319,-212.62361024,0.00039999,31]
[332561883,1721294029352,-800.0,0.00039999,10]
[332561884,1721294029386,-700.0,0.00039999,10]
[332561885,1721294029420,-6378.72855027,0.0004,10]
[332561886,1721294029454,-27432.89541015,0.0004,20]
[332561887,1721294029496,-151.0,0.0004,120]
[332561888,1721294029531,-151.0,0.0004,120]
[332561889,1721294029565,-477.12749073,0.0004,30]
[332561890,1721294029599,-2382.59452695,0.0004,120]
[332561891,1721294029634,-2926.65050029,0.0004,30]
[332561892,1721294029763,-1050.0,0.0004,120]
[332561893,1721294029799,-1483.33669928,0.0004,30]
[332561894,1721294029832,-800.57674147,0.0004,30]
[332561895,1721294029865,-492.84648983,0.0004,30]
[332561896,1721294029899,-3112.90228931,0.0004,30]
[332561897,1721294029933,-2337.37270409,0.0004,120]
[332561898,1721294029970,-2920.03919985,0.0004,120]
[332561899,1721294030003,-8913.23384513,0.0004,60]
[332561900,1721294030036,-701.23561442,0.0004,30]
[332561901,1721294030068,-408.00985205,0.0004,30]
[332561902,1721294030100,-316.30975122,0.0004,30]
[332561903,1721294030133,-2171.33703543,0.0004,120]
[332561904,1721294030166,-2000.0,0.0004,120]
[332561905,1721294030200,-1051.55510594,0.0004,120]
[332561906,1721294030233,-6728.48325688,0.0004,30]
[332561907,1721294030268,-392.0,0.0004,120]
[332561908,1721294030303,-571.10518577,0.0004,120]
[332561909,1721294030340,-1016.48812661,0.0004,120]
[332561910,1721294030377,-352.1,0.0004,120]
[332561911,1721294030414,-464.52,0.0004,120]
[332561912,1721294030450,-57000.54145966,0.0004,30]
[332561913,1721294030483,-158.281232,0.0004,60]
[332561914,1721294030515,-553.0,0.00040073,13]
[332561915,1721294030548,-200.0,0.0004044,30]
[332561916,1721294030580,-252.0,0.0004045,30]
[332561917,1721294030614,-150.0,0.00040497,120]
[332561918,1721294030651,-151.0,0.00040658,120]
[332561919,1721294030683,-519.11934633,0.00040745,13]
[332561920,1721294030715,-214.0,0.0004089,30]
[332561921,1721294030746,-2516.39367316,0.00041,30]
[332561922,1721294030777,-1011.78368328,0.00041,120]
[332561923,1721294030808,-3060.42147587,0.00041,120]
[332561924,1721294030839,-500.0,0.00041023,13]
[332561925,1721294030871,-500.0,0.00041023,13]
[332561926,1721294030903,-500.0,0.00041023,13]
[332561927,1721294030939,-500.0,0.00041023,13]
[332561928,1721294030977,-500.0,0.00041023,13]
[332561929,1721294031013,-500.0,0.00041023,13]
[332561930,1721294031046,-500.0,0.00041023,13]
[332561931,1721294031083,-500.0,0.00041023,13]
[332561932,1721294031117,-500.0,0.00041023,13]
[332561933,1721294031152,-500.0,0.00041023,13]
[332561934,1721294031188,-500.0,0.00041023,13]
[332561935,1721294031221,-500.0,0.00041023,13]
[332561936,1721294031255,-500.0,0.00041023,13]
[332561937,1721294031291,-500.0,0.00041023,13]
[332561938,1721294031325,-500.0,0.00041023,13]
[332561939,1721294031360,-500.0,0.00041023,13]
[332561940,1721294031394,-500.0,0.00041023,13]
[332561941,1721294031427,-500.0,0.00041023,13]
[332561942,1721294031460,-500.0,0.00041023,13]
[332561943,1721294031494,-500.0,0.00041023,13]
[332561944,1721294031532,-500.0,0.00041023,13]
[332561945,1721294031567,-500.0,0.00041023,13]
[332561946,1721294031601,-500.0,0.00041023,13]
[332561947,1721294031636,-500.0,0.00041023,13]
[332561948,1721294031672,-500.0,0.00041023,13]
[332561949,1721294031704,-500.0,0.00041023,13]
[332561950,1721294031737,-500.0,0.00041023,13]
[332561951,1721294031770,-500.0,0.00041023,13]
[332561952,1721294031802,-500.0,0.00041023,13]
[332561953,1721294031836,-500.0,0.00041023,13]
[332561954,1721294031869,-500.0,0.00041023,13]
[332561955,1721294031904,-500.0,0.00041023,13]
[332561956,1721294031938,-500.0,0.00041023,13]
[332561957,1721294031978,-500.0,0.00041023,13]
[332561958,1721294032013,-500.0,0.00041023,13]
[332561959,1721294032048,-500.0,0.00041023,13]
[332561960,1721294032082,-500.0,0.00041023,13]
[332561961,1721294032115,-500.0,0.00041023,13]
[332561962,1721294032149,-500.0,0.00041023,13]
[332561963,1721294032182,-500.0,0.00041023,13]
[332561964,1721294032214,-500.0,0.00041023,13]
[332561965,1721294032248,-500.0,0.00041023,13]
[332561966,1721294032283,-500.0,0.00041023,13]
[332561967,1721294032315,-500.0,0.00041023,13]
[332561968,1721294032349,-500.0,0.00041023,13]
[332561969,1721294032381,-500.0,0.00041023,13]
[332561970,1721294032413,-500.0,0.00041023,13]
[332561971,1721294032445,-500.0,0.00041023,13]
[332561972,1721294032477,-500.0,0.00041023,13]
[332561973,1721294032510,-500.0,0.00041023,13]
[332561974,1721294032543,-500.0,0.00041023,13]
[332561975,1721294032576,-500.0,0.00041023,13]
[332561976,1721294032609,-500.0,0.00041023,13]
[332561977,1721294032646,-500.0,0.00041023,13]
[332561978,1721294032683,-500.0,0.00041023,13]
[332561979,1721294032717,-500.0,0.00041023,13]
[332561980,1721294032753,-500.0,0.00041023,13]
[332561981,1721294032785,-500.0,0.00041023,13]
[332561982,1721294032819,-500.0,0.00041023,13]
[332561983,1721294033054,-500.0,0.00041023,13]
[332561984,1721294033087,-500.0,0.00041023,13]
[332561985,1721294033123,-500.0,0.00041023,13]
[332561986,1721294033157,-865.15039765,0.00041078,120]
[332561987,1721294033192,-2048.22,0.00041095,120]
[332561988,1721294033228,-2048.22,0.00041095,120]
[332561989,1721294033263,-2048.22,0.00041095,120]
[332561990,1721294033298,-2048.22,0.00041095,120]
[332561991,1721294033333,-2048.22,0.00041095,120]
[332561992,1721294033373,-2048.22,0.00041095,120]
[332561993,1721294033406,-2048.22,0.00041095,120]
[332561994,1721294033441,-2048.22,0.00041095,120]
[332561995,1721294033474,-2048.22,0.00041095,120]
[332561996,1721294033508,-2048.22,0.00041095,120]
[332561997,1721294033544,-2048.22,0.00041095,120]
[332561998,1721294033581,-2048.22,0.00041095,120]
[332561999,1721294033614,-2048.22,0.00041095,120]
[332562000,1721294033651,-2048.22,0.00041095,120]
[332562001,1721294033684,-2048.22,0.00041095,120]
[332562002,1721294033719,-2048.22,0.00041095,120]
[332562003,1721294033752,-2048.22,0.00041095,120]
[332562004,1721294033785,-2048.22,0.00041095,120]
[332562005,1721294033821,-2048.22,0.00041095,120]
[332562006,1721294033857,-2048.22,0.00041095,120]
[332562007,1721294033890,-2048.22,0.00041095,120]
[332562008,1721294033922,-2048.22,0.00041095,120]
[332562009,1721294033955,-2048.22,0.00041095,120]
[332562010,1721294033993,-2048.33720735,0.00041095,120]
[332562011,1721294034027,-2200.0,0.00041095,30]
[332562012,1721294034063,-1460.04,0.00041095,14]
[332562013,1721294034095,-1460.04,0.00041095,14]
[332562014,1721294034131,-1460.04,0.00041095,14]
[332562015,1721294034167,-1460.04,0.00041095,14]
[332562016,1721294034204,-1460.04,0.00041095,14]
[332562017,1721294034239,-1460.04,0.00041095,14]
[332562018,1721294034274,-1460.04,0.00041095,14]
[332562019,1721294034308,-1460.04,0.00041095,14]
[332562020,1721294034341,-1460.04,0.00041095,14]
[332562021,1721294034376,-1460.04,0.00041095,14]
[332562022,1721294034411,-1460.04,0.00041095,14]
[332562023,1721294034446,-1460.04,0.00041095,14]
[332562024,1721294034482,-1460.04,0.00041095,14]
[332562025,1721294034516,-1460.04,0.00041095,14]
[332562026,1721294034550,-1460.04,0.00041095,14]
[332562027,1721294034584,-1460.04,0.00041095,14]
[332562028,1721294034616,-1460.04,0.00041095,14]
[332562029,1721294034655,-1460.04,0.00041095,14]
[332562030,1721294034688,-1460.04,0.00041095,14]
[332562031,1721294034723,-1460.04,0.00041095,14]
[332562032,1721294034756,-1460.04,0.00041095,14]
[332562033,1721294034790,-1460.04,0.00041095,14]
[332562034,1721294034823,-1460.04,0.00041095,14]
[332562035,1721294034856,-1460.25378551,0.00041095,14]
[332562036,1721294034888,-3000.0,0.00041095,120]
[332562037,1721294034924,-515.18528829,0.00041095,30]
[332562038,1721294034958,-799.99,0.00041095,60]
[332562039,1721294034993,-799.99,0.00041095,60]
[332562040,1721294035029,-799.99,0.00041095,60]
[332562041,1721294035064,-799.99,0.00041095,60]
[332562042,1721294035099,-799.99,0.00041095,60]
[332562043,1721294035133,-799.99,0.00041095,60]
[332562044,1721294035166,-799.99,0.00041095,60]
[332562045,1721294035199,-799.99,0.00041095,60]
[332562046,1721294035232,-799.99,0.00041095,60]
[332562047,1721294035266,-799.99,0.00041095,60]
[332562048,1721294035300,-799.99,0.00041095,60]
[332562049,1721294035335,-799.99,0.00041095,60]
[332562050,1721294035371,-799.99,0.00041095,60]
[332562051,1721294035410,-799.99,0.00041095,60]
[332562052,1721294035444,-799.99,0.00041095,60]
[332562053,1721294035477,-799.99,0.00041095,60]
[332562054,1721294035512,-799.99,0.00041095,60]
[332562055,1721294035582,-799.99,0.00041095,60]
[332562056,1721294035617,-799.99,0.00041095,60]
[332562057,1721294035655,-799.99,0.00041095,60]
[332562058,1721294035690,-799.99,0.00041095,60]
[332562059,1721294035724,-799.99,0.00041095,60]
[332562060,1721294035758,-799.99,0.00041095,60]
[332562061,1721294035791,-800.10436192,0.00041095,60]
[332562062,1721294035823,-2200.0,0.00041095,30]
[332562063,1721294035858,-800.0,0.00041095,30]
[332562064,1721294035892,-700.0,0.00041095,30]
[332562065,1721294035927,-817.0,0.00041096,120]
[332562066,1721294035960,-152.17,0.00041123,30]
[332562067,1721294035994,-1335.43399234,0.0004118,120]
[332562068,1721294036029,-150.0,0.00041218,120]
[332562069,1721294036062,-151.0,0.00041315,120]
[332562070,1721294036097,-151.0,0.00041342,120]
[332562071,1721294036130,-3000.0,0.00041369,120]
[332562072,1721294036164,-2200.0,0.00041643,30]
[332562073,1721294036198,-2200.0,0.00041643,30]
[332562074,1721294036232,-3000.0,0.00041643,120]
[332562075,1721294036266,-800.0,0.00041643,30]
[332562076,1721294036299,-700.0,0.00041643,30]
[332562077,1721294036335,-2083.33333,0.0004185,11]
[332562078,1721294036369,-3000.0,0.00041917,120]
[332562079,1721294036403,-268.42518862,0.00041918,30]
[332562080,1721294036440,-150.0,0.00041918,30]
[332562081,1721294036473,-150.36477183,0.00041918,30]
[332562082,1721294036508,-150.0,0.00041918,30]
[332562083,1721294036544,-150.0,0.00041918,30]
[332562084,1721294036580,-271.47374658,0.00041918,30]
[332562085,1721294036613,-150.0,0.00041918,30]
[332562086,1721294036649,-150.0,0.00041918,30]
[332562087,1721294036687,-150.0,0.00041918,30]
[332562088,1721294036718,-150.0,0.00041918,30]
[332562089,1721294036752,-150.0,0.00041918,30]
[332562090,1721294036786,-150.0,0.00041918,30]
[332562091,1721294036820,-161.37004628,0.00041918,30]
[332562092,1721294036852,-150.0,0.00041918,30]
[332562093,1721294036884,-150.0,0.00041918,30]
[332562094,1721294036917,-268.42518862,0.00041965,30]
[332562095,1721294036953,-200.0,0.0004197,30]
[332562096,1721294036985,-151.0,0.00041973,120]
[332562097,1721294037018,-150.0,0.00041975,30]
[332562098,1721294037052,-150.0,0.00041979,30]
[332562099,1721294037083,-252.0,0.0004198,30]
[332562100,1721294037115,-150.0,0.00041995,30]
[332562101,1721294037153,-160.0,0.00042,17]
[332562102,1721294037187,-81920.07973823,0.00042,10]
[332562103,1721294037218,-950.0,0.00042,120]
[332562104,1721294037251,-679.42169112,0.00042,120]
[332562105,1721294037283,-1105.65821323,0.00042,120]
[332562106,1721294037317,-696.04538032,0.00042,60]
[332562107,1721294037357,-532.812063,0.00042,120]
[332562108,1721294037392,-2000.0,0.00042,120]
[332562109,1721294037426,-1173.5416,0.00042,120]
[332562110,1721294037459,-33342.0,0.00042,120]
[332562111,1721294037493,-40000.0,0.00042,10]
[332562112,1721294037526,-1223.96,0.00042,120]
[332562113,1721294037559,-4506.33,0.00042,48]
[332562114,1721294037592,-268.42518862,0.00042012,30]
[332562115,1721294037626,-150.0,0.00042031,30]
[332562116,1721294037660,-150.0,0.00042033,30]
[332562117,1721294037694,-150.0,0.0004204,30]
[332562118,1721294037730,-268.42518862,0.00042059,30]
[332562119,1721294037764,-150.0,0.00042073,30]
[332562120,1721294037799,-150.0,0.0004209,30]
[332562121,1721294037833,-223896.30830984,0.000421,30]
[332562122,1721294037867,-150.0,0.00042101,30]
[332562123,1721294037906,-268.42518862,0.00042106,30]
[332562124,1721294037943,-150.0,0.00042145,30]
[332562125,1721294037983,-150.0,0.00042148,30]
[332562126,1721294038021,-150.0,0.0004215,30]
[332562127,1721294038056,-268.42518862,0.00042153,30]
[332562128,1721294038090,-150.0,0.00042163,30]
[332562129,1721294038126,-150.0,0.00042176,30]
[332562130,1721294038164,-2200.0,0.00042191,30]
[332562131,1721294038201,-2200.0,0.00042191,30]
[332562132,1721294038237,-3000.0,0.00042191,120]
[332562133,1721294038275,-800.0,0.00042191,30]
[332562134,1721294038310,-700.0,0.00042191,30]
[332562135,1721294038347,-268.42518862,0.000422,30]
[332562136,1721294038380,-150.0,0.00042205,30]
[332562137,1721294038415,-150.0,0.00042224,30]
[332562138,1721294038450,-150.0,0.00042228,30]
[332562139,1721294038484,-268.42518862,0.00042247,30]
[332562140,1721294038519,-150.0,0.00042258,30]
[332562141,1721294038552,-150.0,0.00042263,30]
[332562142,1721294038585,-150.0,0.00042285,30]
[332562143,1721294038619,-268.42518862,0.00042294,30]
[332562144,1721294038656,-150.0,0.00042306,30]
[332562145,1721294038689,-150.0,0.00042306,30]
[332562146,1721294038724,-150.0,0.0004232,30]
[332562147,1721294038755,-519.11934633,0.00042323,14]
[332562148,1721294038787,-214.0,0.0004233,30]
[332562149,1721294038819,-268.42518862,0.00042341,30]
[332562150,1721294038850,-150.0,0.00042346,30]
[332562151,1721294038884,-150.0,0.00042364,120]
[332562152,1721294038915,-150.0,0.00042372,30]
[332562153,1721294038950,-150.0,0.00042378,30]
[332562154,1721294038983,-150.0,0.00042383,30]
[332562155,1721294039017,-268.42518862,0.00042388,30]
[332562156,1721294039052,-150.0,0.00042408,30]
[332562157,1721294039085,-268.42518862,0.00042435,30]
[332562158,1721294039118,-150.0,0.00042435,30]
[332562159,1721294039151,-150.0,0.00042435,30]
[332562160,1721294039273,-150.0,0.00042461,30]
[332562161,1721294039308,-3000.0,0.00042465,120]
[332562162,1721294039343,-150.0,0.00042469,30]
[332562163,1721294039377,-268.42518862,0.00042482,30]
[332562164,1721294039411,-150.0,0.00042485,30]
[332562165,1721294039450,-150.0,0.00042493,30]
[332562166,1721294039485,-150.0,0.000425,120]
[332562167,1721294039520,-817.0,0.00042501,120]
[332562168,1721294039554,-268.42518862,0.00042529,30]
[332562169,1721294039588,-150.0,0.0004253,30]
[332562170,1721294039624,-150.0,0.00042539,30]
[332562171,1721294039662,-150.0,0.0004255,30]
[332562172,1721294039697,-268.42518862,0.00042576,30]
[332562173,1721294039730,-150.0,0.00042592,30]
[332562174,1721294039762,-150.0,0.00042599,30]
[332562175,1721294039794,-995.944,0.000426,120]
[332562176,1721294039826,-2926.94013687,0.000426,90]
[332562177,1721294039860,-150.0,0.00042608,30]
[332562178,1721294039895,-150.0,0.00042616,30]
[332562179,1721294039929,-268.42518862,0.00042623,30]
[332562180,1721294039966,-151.0,0.0004263,120]
[332562181,1721294040007,-150.0,0.00042653,30]
[332562182,1721294040041,-150.0,0.00042665,30]
[332562183,1721294040074,-268.42518862,0.0004267,30]
[332562184,1721294040107,-151.0,0.00042685,120]
[332562185,1721294040142,-150.0,0.00042694,30]
[332562186,1721294040180,-150.0,0.00042694,30]
[332562187,1721294040216,-150.0,0.00042694,30]
[332562188,1721294040253,-150.0,0.00042713,30]
[332562189,1721294040290,-150.0,0.00042714,30]
[332562190,1721294040328,-268.42518862,0.00042717,30]
[332562191,1721294040365,-150.0,0.00042723,30]
[332562192,1721294040403,-2200.0,0.00042739,30]
[332562193,1721294040439,-2200.0,0.00042739,30]
[332562194,1721294040476,-3000.0,0.00042739,120]
[332562195,1721294040518,-800.0,0.00042739,30]
[332562196,1721294040554,-700.0,0.00042739,30]
[332562197,1721294040590,-268.42518862,0.00042764,30]
[332562198,1721294040627,-150.0,0.00042771,30]
[332562199,1721294040664,-150.0,0.00042775,30]
[332562200,1721294040698,-150.0,0.0004278,30]
[332562201,1721294040730,-268.42518862,0.00042811,30]
[332562202,1721294040763,-150.0,0.00042826,30]
[332562203,1721294040796,-150.0,0.00042837,30]
[332562204,1721294040830,-150.0,0.00042838,30]
[332562205,1721294040865,-150.0,0.00042849,30]
[332562206,1721294040901,-268.42518862,0.00042858,30]
[332562207,1721294040939,-150.0,0.00042895,30]
[332562208,1721294040979,-150.0,0.00042898,30]
[332562209,1721294041014,-1972.67894386,0.000429,120]
[332562210,1721294041048,-2736.33740829,0.000429,120]
[332562211,1721294041082,-268.42518862,0.00042905,30]
[332562212,1721294041115,-150.0,0.00042927,30]
[332562213,1721294041147,-150.0,0.0004294,30]
[332562214,1721294041179,-793.0,0.00042945,30]
[332562215,1721294041214,-268.42518862,0.00042953,30]
[332562216,1721294041247,-150.0,0.00042953,30]
[332562217,1721294041280,-150.0,0.00042953,30]
[332562218,1721294041313,-150.0,0.00042959,30]
[332562219,1721294041349,-268.42518862,0.00043,30]
[332562220,1721294041382,-504.22431041,0.00043,14]
[332562221,1721294041415,-30000.0,0.00043,10]
[332562222,1721294041448,-600.0,0.00043,120]
[332562223,1721294041481,-2045.25243529,0.00043,30]
[332562224,1721294041514,-217.65694665,0.00043,120]
[332562225,1721294041546,-22842.99413383,0.00043,10]
[332562226,1721294041579,-921.84106922,0.00043,30]
[332562227,1721294041612,-10000.0,0.00043,10]
[332562228,1721294041649,-3171.0,0.00043,120]
[332562229,1721294041681,-1374.459503,0.00043,60]
[332562230,1721294041715,-272.3368721,0.00043,30]
[332562231,1721294041748,-2032.97625321,0.00043,120]
[332562232,1721294041781,-261.96910097,0.00043,120]
[332562233,1721294041816,-233649.35053315,0.00043,30]
[332562234,1721294041849,-150.0,0.00043004,30]
[332562235,1721294041881,-150.0,0.0004301,30]
[332562236,1721294041914,-3000.0,0.00043013,120]
[332562237,1721294041951,-150.0,0.00043021,30]
[332562238,1721294041986,-268.42518862,0.00043047,30]
[332562239,1721294042021,-150.0,0.00043053,30]
[332562240,1721294042057,-150.0,0.00043068,30]
[332562241,1721294042091,-150.0,0.00043082,30]
[332562242,1721294042126,-150.0,0.00043082,30]
[332562243,1721294042160,-150.0,0.00043082,30]
[332562244,1721294042196,-2414.85083,0.00043088,30]
[332562245,1721294042231,-268.42518862,0.00043094,30]
[332562246,1721294042267,-150.0,0.00043125,30]
[332562247,1721294042306,-268.42518862,0.00043141,30]
[332562248,1721294042342,-150.0,0.00043143,30]
[332562249,1721294042380,-150.0,0.0004316,30]
[332562250,1721294042622,-150.0,0.00043167,30]
[332562251,1721294042660,-150.0,0.00043183,30]
[332562252,1721294042698,-268.42518862,0.00043188,30]
[332562253,1721294042734,-150.0,0.00043204,30]
[332562254,1721294042771,-150.0,0.00043211,30]
[332562255,1721294042806,-268.42518862,0.00043235,30]
[332562256,1721294042842,-150.0,0.00043237,30]
[332562257,1721294042877,-150.0,0.0004324,30]
[332562258,1721294042912,-150.0,0.00043266,30]
[332562259,1721294042946,-150.0,0.00043281,30]
[332562260,1721294042983,-268.42518862,0.00043282,30]
[332562261,1721294043018,-2200.0,0.00043287,30]
[332562262,1721294043054,-2200.0,0.00043287,30]
[332562263,1721294043090,-800.0,0.00043287,30]
[332562264,1721294043129,-700.0,0.00043287,30]
[332562265,1721294043170,-3000.0,0.00043287,120]
[332562266,1721294043211,-151.0,0.00043288,120]
[332562267,1721294043253,-2414.85083,0.00043288,30]
[332562268,1721294043294,-150.0,0.00043298,30]
[332562269,1721294043334,-864.41033347,0.000433,120]
[332562270,1721294043374,-150.0,0.00043315,30]
[332562271,1721294043416,-150.0,0.00043327,30]
[332562272,1721294043458,-268.42518862,0.00043329,30]
[332562273,1721294043497,-150.0,0.00043355,30]
[332562274,1721294043536,-268.42518862,0.00043376,30]
[332562275,1721294043580,-150.0,0.00043388,30]
[332562276,1721294043623,-150.0,0.00043392,30]
[332562277,1721294043664,-150.0,0.00043394,30]
[332562278,1721294043703,-150.0,0.00043413,30]
[332562279,1721294043742,-268.42518862,0.00043423,30]
[332562280,1721294043779,-1000000.0,0.0004344,30]
[332562281,1721294043816,-150.0,0.0004345,30]
[332562282,1721294043855,-268.42518862,0.0004347,30]
[332562283,1721294043893,-150.0,0.0004347,30]
[332562284,1721294043929,-150.0,0.0004347,30]
[332562285,1721294043966,-150.0,0.0004347,30]
[332562286,1721294044003,-150.0,0.0004347,30]
[332562287,1721294044041,-150.0,0.0004347,30]
[332562288,1721294044078,-2414.85083,0.00043488,30]
[332562289,1721294044115,-348046.29255456,0.00043502,30]
[332562290,1721294044152,-348046.29255456,0.00043502,30]
[332562291,1721294044189,-1018.39094032,0.00043502,30]
[332562292,1721294044226,-15274.20055385,0.00043502,30]
[332562293,1721294044268,-315.90249603,0.00043502,10]
[332562294,1721294044306,-150.0,0.00043508,30]
[332562295,1721294044343,-252.0,0.0004351,30]
[332562296,1721294044380,-200.0,0.0004351,30]
[332562297,1721294044419,-150.0,0.00043511,30]
[332562298,1721294044458,-268.42518862,0.00043517,30]
[332562299,1721294044497,-150.0,0.00043528,30]
[332562300,1721294044533,-150.0,0.00043548,30]
[332562301,1721294044570,-15132.36347043,0.0004356,60]
[332562302,1721294044606,-1059.64440736,0.0004356,60]
[332562303,1721294044645,-4333.67973196,0.0004356,60]
[332562304,1721294044683,-2780.10472387,0.0004356,60]
[332562305,1721294044719,-3000.0,0.00043561,120]
[332562306,1721294044757,-268.42518862,0.00043564,30]
[332562307,1721294044795,-150.0,0.00043572,30]
[332562308,1721294044831,-150.0,0.00043585,30]
[332562309,1721294044867,-3253.36397284,0.000436,120]
[332562310,1721294044903,-268.42518862,0.00043611,30]
[332562311,1721294044938,-150.0,0.00043621,30]
[332562312,1721294044979,-150.0,0.00043625,30]
[332562313,1721294045016,-150.0,0.00043633,30]
[332562314,1721294045053,-150.0,0.00043643,30]
[332562315,1721294045089,-268.42518862,0.00043658,30]
[332562316,1721294045125,-2414.85083,0.00043688,30]
[332562317,1721294045163,-150.0,0.00043695,30]
[332562318,1721294045198,-670.07429818,0.000437,60]
[332562319,1721294045235,-150.0,0.000437,30]
[332562320,1721294045273,-150.0,0.00043703,30]
[332562321,1721294045343,-268.42518862,0.00043705,30]
[332562322,1721294045382,-150.0,0.00043729,30]
[332562323,1721294045424,-150.0,0.00043735,30]
[332562324,1721294045460,-268.42518862,0.00043752,30]
[332562325,1721294045499,-150.0,0.00043756,30]
[332562326,1721294045536,-150.0,0.00043758,30]
[332562327,1721294045575,-214.0,0.0004377,30]
[332562328,1721294045611,-150.0,0.00043781,30]
[332562329,1721294045649,-268.42518862,0.00043799,30]
[332562330,1721294045684,-465.41007956,0.000438,30]
[332562331,1721294045720,-716.58103562,0.000438,111]
[332562332,1721294045754,-150.0,0.00043815,30]
[332562333,1721294045787,-150.0,0.00043817,30]
[332562334,1721294045823,-2200.0,0.00043835,30]
[332562335,1721294045858,-2200.0,0.00043835,30]
[332562336,1721294045893,-800.0,0.00043835,30]
[332562337,1721294045927,-700.0,0.00043835,30]
[332562338,1721294045964,-1458.33,0.00043835,120]
[332562339,1721294046001,-1250.0,0.00043835,120]
[332562340,1721294046035,-1250.0,0.00043835,120]
[332562341,1721294046069,-1250.0,0.00043835,120]
[332562342,1721294046103,-1250.0,0.00043835,120]
[332562343,1721294046140,-1250.0,0.00043835,120]
[332562344,1721294046174,-1250.0,0.00043835,120]
[332562345,1721294046209,-1250.0,0.00043835,120]
[332562346,1721294046252,-1250.0,0.00043835,120]
[332562347,1721294046293,-1250.0,0.00043835,120]
[332562348,1721294046337,-1250.0,0.00043835,120]
[332562349,1721294046377,-1250.0,0.00043835,120]
[332562350,1721294046421,-1250.0,0.00043835,120]
[332562351,1721294046459,-1250.0,0.00043835,120]
[332562352,1721294046496,-1250.0,0.00043835,120]
[332562353,1721294046532,-1250.0,0.00043835,120]
[332562354,1721294046570,-1250.0,0.00043835,120]
[332562355,1721294046607,-1250.0,0.00043835,120]
[332562356,1721294046646,-1250.0,0.00043835,120]
[332562357,1721294046686,-1250.0,0.00043835,120]
[332562358,1721294046722,-1250.0,0.00043835,120]
[332562359,1721294046758,-1250.0,0.00043835,120]
[332562360,1721294046793,-1250.0,0.00043835,120]